bitfinex-derivatives/quotes_ETHF0:USTF0_20251012
["timestamp","ask_amount","ask_price","bid_price","bid_amount"]
[1760310109152,3.64327,4130.1,4130.0,0.3036]
[1760310109351,0.43552,4129.6,4129.5,1.0138]
[1760310109553,41.23552,4129.6,4129.5,1.0138]
[1760310109948,41.23552,4129.6,4129.5,1.01615495]
[1760310110253,40.8,4129.6,4129.5,1.01615495]
[1760310112248,43.94913903,4129.6,4129.5,1.01615495]
[1760310112453,47.15693903,4129.6,4129.5,1.01615495]
[1760310114349,47.15693903,4129.6,4129.5,0.30595495]
[1760310114743,47.15693903,4129.6,4129.5,0.00235495]
[1760310114947,0.43561,4128.8,4127.7,3.2078]
[1760310115255,7.42007845,4128.6,4128.5,1.009]
[1760310115646,7.42007845,4128.6,4128.5,0.3052]
[1760310115647,48.22007845,4128.6,4128.5,0.3052]
[1760310115846,48.22007845,4128.6,4127.7,3.2078]
[1760310115847,0.43568,4128.1,4127.7,0.7038]
[1760310116051,4.21235845,4127.8,4127.7,0.70680121]
[1760310116252,4.21235845,4127.8,4127.7,0.00300121]
[1760310116454,4.21235845,4127.8,4127.0,0.2966]
[1760310116455,0.43579,4127.1,4127.0,0.2966]
[1760310116652,45.01243845,4127.1,4127.0,1.0004]
[1760310116854,48.09408893,4127.1,4127.0,1.0004]
[1760310117256,48.09408893,4127.1,4127.0,0.2966]
[1760310117457,48.09408893,4127.1,4127.0,1.00219661]
[1760310118055,48.09408893,4127.1,4127.0,0.29839661]
[1760310118460,48.09408893,4127.1,4127.0,0.00179661]
[1760310118960,48.09408893,4127.1,4126.5,1.0004]
[1760310118961,48.09408893,4127.1,4126.9,0.08121326]
[1760310119156,0.43588,4126.2,4126.0,0.2966]
[1760310119359,0.43595,4125.6,4125.3,0.7038]
[1760310119657,6.86520836,4125.6,4125.5,1.0004]
[1760310119856,47.66520836,4125.6,4125.5,1.00246939]
[1760310120558,47.66520836,4125.6,4125.5,0.29866939]
[1760310121557,0.436,4125.1,4125.0,1.0004]
[1760310121756,7.42044845,4125.1,4125.0,0.2966]
[1760310121959,10.60485539,4125.1,4125.0,0.2966]
[1760310122356,10.16885539,4125.1,4124.6,0.7038]
[1760310122661,10.16885539,4125.1,4124.5,0.2966]
[1760310122662,0.43605,4124.6,4124.5,0.2966]
[1760310122967,47.5294707,4124.6,4124.5,1.00311303]
[1760310123973,47.0934207,4124.6,4124.5,1.00311303]
[1760310124565,3.77949579,4125.1,4125.0,0.43601]
[1760310124566,0.00284734,4125.1,4125.0,0.43601]
[1760310124861,3.10811132,4125.1,4125.0,1.43641]
[1760310125064,43.90811132,4125.1,4125.0,4.64421]
[1760310125267,40.80284734,4125.1,4125.0,4.64421]
[1760310125463,0.00284734,4125.1,4125.0,4.64421]
[1760310126468,3.2078,4126.2,4126.1,1.13969]
[1760310127268,3.20990767,4126.2,4126.1,0.7038]
[1760310127965,0.00210767,4126.2,4126.1,0.7038]
[1760310128864,3.2078,4127.3,4127.0,0.73239]
[1760310129164,6.79394015,4127.3,4127.1,0.7038]
[1760310129364,40.8,4127.2,4127.1,0.7038]
[1760310129759,47.66830452,4127.2,4127.1,0.7038]
[1760310129966,47.67125102,4127.2,4127.1,0.7038]
[1760310132169,47.67125102,4127.2,4126.5,0.2966]
[1760310132378,6.98444845,4126.6,4126.5,1.0004]
[1760310132763,10.1961608,4126.6,4126.5,1.0004]
[1760310132964,50.9961608,4126.6,4126.5,1.0004]
[1760310133566,50.9961608,4126.6,4126.0,0.2966]
[1760310133870,0.43589,4126.1,4126.0,0.2966]
[1760310134174,3.63584433,4126.1,4126.0,0.2966]
[1760310134473,47.64364433,4126.1,4126.0,1.0004]
[1760310134664,47.64364433,4126.1,4126.0,0.2966]
[1760310135169,47.64364433,4126.1,4125.0,1.0004]
[1760310135170,0.43594,4125.7,4125.0,1.0004]
[1760310135370,0.436,4125.1,4125.0,1.0004]
[1760310135761,3.62218984,4125.1,4125.0,1.0004]
[1760310136165,3.18618984,4125.1,4125.0,1.0004]
[1760310136472,3.62217984,4125.2,4125.0,1.0004]
[1760310136673,0.43605,4124.7,4124.6,0.7038]
[1760310137169,3.65247801,4124.7,4124.6,0.7038]
[1760310137668,3.65247801,4124.7,4124.5,0.00271303]
[1760310137877,3.2078,4124.6,4124.5,0.00271303]
[1760310138067,3.2078,4124.6,4124.5,1.00311303]
[1760310138267,6.29592302,4124.6,4124.5,1.00311303]
[1760310138668,0.43606,4124.5,4124.1,0.7863]
[1760310138872,0.43609,4124.3,4124.2,0.7038]
[1760310139066,0.43609,4124.3,4124.1,0.0825]
[1760310139265,3.21723542,4124.3,4122.6,3.2078]
[1760310139468,3.2078,4123.5,4123.3,0.7038]
[1760310139774,3.2078,4123.5,4123.4,0.7038]
[1760310139775,0.00297023,4123.5,4123.4,0.7038]
[1760310140069,6.40380959,4124.5,4124.3,0.43608]
[1760310140070,3.2078,4124.5,4124.3,0.43608]
[1760310140274,3.2078,4124.5,4124.4,0.7038]
[1760310140673,44.0078,4124.5,4124.4,0.7038]
[1760310141168,44.00959004,4124.5,4124.4,0.7038]
[1760310141769,0.00179004,4124.5,4124.4,0.7038]
[1760310142078,3.2078,4125.7,4124.5,1.09016]
[1760310142376,6.42716384,4125.7,4125.6,0.6985]
[1760310143067,10.171,4125.8,4125.7,0.6985]
[1760310143467,10.17405314,4125.8,4125.7,0.6985]
[1760310143669,0.00305314,4125.8,4125.7,0.6985]
[1760310145571,3.15041682,4125.8,4125.7,0.6985]
[1760310147072,3.58633682,4125.8,4125.7,0.6985]
[1760310148774,3.15041682,4125.8,4125.7,0.6985]
[1760310148980,43.95041682,4125.8,4125.7,0.6985]
[1760310149879,0.43594,4125.7,4125.5,0.9935]
[1760310150180,6.41221027,4125.6,4125.5,0.9935]
[1760310151581,6.41221027,4125.6,4125.0,0.9935]
[1760310151582,0.436,4125.1,4125.0,0.9935]
[1760310151874,3.57673107,4125.1,4125.0,0.9935]
[1760310152782,6.78453107,4125.1,4125.0,0.9935]
[1760310153179,6.78453107,4125.1,4125.0,0.295]
[1760310153376,10.64428438,4125.1,4124.6,0.6985]
[1760310153581,0.43604,4124.7,4124.6,0.6985]
[1760310153883,43.94826896,4124.7,4124.1,0.6985]
[1760310154180,0.4361,4124.2,4124.0,0.2966]
[1760310154375,3.2078,4124.4,4124.0,0.2966]
[1760310154582,3.14826896,4124.1,4124.0,0.9951]
[1760310154779,3.62740575,4124.3,4124.0,0.9951]
[1760310154978,3.62740575,4124.3,4124.1,0.6985]
[1760310155275,40.8,4124.7,4124.6,0.6985]
[1760310155479,3.2078,4124.9,4124.8,0.6985]
[1760310155671,3.2078,4125.5,4125.4,1.13447]
[1760310156081,3.2078,4125.5,4125.4,0.6985]
[1760310156577,3.2078,4125.5,4125.0,0.295]
[1760310156779,0.436,4125.1,4125.0,0.295]
[1760310156984,10.6784404,4125.5,4124.0,0.9951]
[1760310156985,0.4361,4124.2,4124.0,0.9951]
[1760310157181,40.8,4124.1,4124.0,0.9951]
[1760310157381,43.90651784,4124.1,4124.0,0.9951]
[1760310157580,1.09034,4123.9,4123.2,0.24252713]
[1760310157779,3.64398,4123.5,4123.4,0.6985]
[1760310158076,6.77937122,4123.5,4123.4,0.6985]
[1760310158677,47.57937122,4123.5,4123.4,0.6985]
[1760310159085,47.57937122,4123.5,4123.2,0.24252713]
[1760310159580,47.57937122,4123.5,4123.3,0.70136521]
[1760310159785,47.57937122,4123.5,4123.3,0.00286521]
[1760310160286,0.43626,4122.6,4122.5,0.295]
[1760310160481,0.43626,4122.6,4122.5,0.9935]
[1760310160674,3.59359024,4122.6,4122.5,0.9935]
[1760310160881,44.39359024,4122.6,4122.5,0.9935]
[1760310161182,44.39359024,4122.6,4122.5,0.295]
[1760310161387,44.39569176,4122.6,4122.5,0.99574067]
[1760310161979,44.39569176,4122.6,4122.0,0.295]
[1760310162389,44.39569176,4122.6,4122.1,0.43631]
[1760310162585,43.95943176,4122.6,4122.1,0.43631]
[1760310162886,43.95943176,4122.6,4122.1,0.00258142]
[1760310163082,0.4363,4122.3,4122.1,0.00258142]
[1760310163480,3.2078,4122.4,4122.1,0.00258142]
[1760310163481,3.20566237,4122.2,4122.1,0.00258142]
[1760310163888,3.2078,4122.4,4122.1,0.00258142]
[1760310163889,3.20348427,4122.3,4122.1,0.68198142]
[1760310164087,40.8,4122.2,4122.1,1.11829142]
[1760310164483,0.00210152,4122.6,4122.5,0.43627]
[1760310164685,0.00210152,4122.6,4122.5,4.59687]
[1760310165289,3.21952825,4122.6,4122.4,0.43628]
[1760310165489,3.21952825,4122.6,4122.2,1.1157]
[1760310165490,40.8,4122.5,4122.2,1.1157]
[1760310165882,3.16762384,4122.4,4122.2,1.1157]
[1760310166393,0.4363,4122.3,4122.1,0.00258142]
[1760310166585,3.16762384,4122.4,4122.1,0.00258142]
[1760310166792,3.21883062,4122.2,4122.1,0.00258142]
[1760310166985,3.21883062,4122.4,4122.1,0.00258142]
[1760310167179,3.21883062,4122.4,4122.1,0.43889142]
[1760310167384,3.20990152,4122.6,4122.1,0.43889142]
[1760310167385,3.21883062,4122.5,4122.3,1.1157]
[1760310167587,3.20990152,4122.6,4121.5,3.2078]
[1760310167789,3.2078,4122.0,4121.0,1.41083]
[1760310168190,0.43635,4121.8,4121.0,0.9744]
[1760310168385,3.18226868,4121.9,4121.4,0.43639]
[1760310168698,40.8,4121.5,4121.4,0.00315186]
[1760310169001,43.98251396,4121.5,4121.4,0.00315186]
[1760310170604,40.8,4121.5,4121.4,0.68255186]
[1760310172011,40.8,4121.5,4121.4,3.89035186]
[1760310172406,3.2078,4122.5,4122.4,1.15708]
[1760310172911,0.00210152,4122.6,4122.5,0.9996]
[1760310173506,40.80210152,4122.6,4122.5,0.9996]
[1760310175809,3.2078,4123.6,4123.5,1.43577]
[1760310176015,3.2078,4124.2,4124.1,1.1569]
[1760310176311,6.38490155,4124.2,4124.1,1.1569]
[1760310176507,6.38490155,4124.2,4122.6,1.72574262]
[1760310176706,44.0078,4123.7,4123.6,0.7208]
[1760310176917,40.8,4123.7,4123.6,0.7208]
[1760310177112,43.8801748,4123.7,4123.6,0.7208]
[1760310177309,3.20987371,4124.2,4124.0,0.2788]
[1760310177310,0.00207371,4124.2,4124.0,0.2788]
[1760310177513,0.00207371,4124.2,4124.1,1.1569]
[1760310178411,40.80207371,4124.2,4124.1,1.1569]
[1760310178907,3.2078,4125.2,4125.1,1.1568]
[1760310179109,3.2078,4125.2,4125.0,0.2788]
[1760310179110,3.2078,4125.7,4125.6,0.7208]
[1760310179411,6.3221971,4125.7,4125.6,0.7208]
[1760310179820,40.80290462,4125.7,4125.6,1.15853566]
[1760310180310,47.18192052,4125.7,4124.7,0.7208]
[1760310180510,3.2078,4125.1,4124.5,0.2788]
[1760310180910,3.21378573,4125.0,4124.5,0.2788]
[1760310181117,3.21378573,4125.0,4124.5,0.9996]
[1760310181312,3.21378573,4125.0,4124.7,0.43603]
[1760310181613,3.21378573,4125.0,4124.8,0.43602]
[1760310181816,3.21378573,4125.0,4124.9,0.7208]
[1760310182015,40.80290462,4125.7,4125.6,0.7208]
[1760310182313,3.14279878,4125.7,4125.6,0.7208]
[1760310182714,40.80290462,4125.7,4125.6,0.7208]
[1760310182915,40.80290462,4125.7,4125.5,0.2788]
[1760310183222,47.13087069,4125.7,4125.3,0.43598]
[1760310183715,47.13087069,4125.7,4124.8,3.2078]
[1760310183912,3.2078,4125.1,4124.6,0.43604]
[1760310184111,3.2078,4125.1,4124.7,0.43603]
[1760310184419,3.18618531,4125.0,4124.5,0.00221005]
[1760310184810,3.2078,4124.6,4124.5,0.00221005]
[1760310185113,6.8422281,4124.6,4123.6,3.2078]
[1760310185319,6.8422281,4124.6,4122.8,3.64403]
[1760310185320,3.64395,4123.8,4122.8,3.64403]
[1760310185521,40.8,4123.0,4122.8,3.64403]
[1760310185706,40.8,4123.0,4122.9,0.7208]
[1760310185908,40.8,4123.0,4122.9,0.72279842]
[1760310186112,43.94168398,4123.0,4122.9,0.72279842]
[1760310186318,40.8,4123.0,4122.9,0.72279842]
[1760310186718,40.8,4123.0,4122.9,3.93059842]
[1760310187110,40.8,4123.0,4122.9,0.72279842]
[1760310187316,40.8,4123.0,4122.9,0.00199842]
[1760310187513,43.88131419,4123.0,4122.9,0.00199842]
[1760310187913,43.88131419,4123.0,4121.9,3.2078]
[1760310188109,3.64409,4122.4,4121.5,0.43637]
[1760310188422,3.21933067,4122.3,4121.3,3.6442]
[1760310188716,3.21933067,4122.3,4121.0,0.2788]
[1760310188717,3.2078,4121.8,4121.0,0.71522]
[1760310189022,0.43642,4121.2,4121.0,0.00201792]
[1760310189324,3.16313669,4121.1,4121.0,0.00201792]
[1760310189724,3.59955669,4121.2,4120.2,3.2078]
[1760310189923,40.8,4120.5,4120.2,3.2078]
[1760310190118,40.8,4120.5,4120.3,0.7208]
[1760310190316,3.15572915,4120.4,4120.3,0.7208]
[1760310190919,3.15572915,4120.4,4120.3,1.16031345]
[1760310190920,40.8,4120.4,4120.3,1.16031345]
[1760310191824,3.2078,4121.3,4121.2,0.43641]
[1760310192017,3.2078,4122.0,4121.7,0.43636]
[1760310192223,3.2078,4122.0,4121.2,3.9286]
[1760310192428,3.17717598,4121.7,4121.2,3.2078]
[1760310192720,3.17717598,4121.7,4120.7,0.43646]
[1760310192721,3.2078,4121.5,4120.7,0.43646]
[1760310192917,40.8,4120.8,4120.5,0.71528]
[1760310193118,40.8,4120.8,4120.6,0.43647]
[1760310193319,3.21979551,4120.7,4120.6,0.43647]
[1760310193519,3.21979551,4120.7,4120.6,1.15727]
[1760310193916,3.15198974,4121.4,4120.6,0.7208]
[1760310194119,3.2078,4121.5,4121.4,0.43639]
[1760310194625,6.35978974,4121.5,4121.2,0.43641]
[1760310194823,6.35978974,4121.5,4121.3,0.43639]
[1760310196227,3.15198974,4121.5,4121.4,0.7208]
[1760310196522,0.00293945,4121.8,4121.5,0.2788]
[1760310196715,0.00293945,4121.8,4121.7,1.15716]
[1760310197330,9.45e-06,4121.8,4121.7,1.15716]
[1760310197625,9.45e-06,4121.8,4121.5,0.2788]
[1760310197626,3.2078,4123.1,4123.0,0.43622]
[1760310197931,6.36922934,4123.1,4123.0,0.43622]
[1760310198428,6.36922934,4123.1,4122.5,0.43627]
[1760310198624,44.0078,4122.6,4120.9,3.2078]
[1760310198933,3.2078,4121.7,4120.9,3.2078]
[1760310199221,3.13122606,4121.6,4120.9,3.2078]
[1760310199629,3.13122606,4121.6,4121.5,1.43598]
[1760310200126,3.2078,4122.8,4121.5,5.29835]
[1760310200330,3.2078,4122.8,4122.7,0.43625]
[1760310200525,3.2078,4122.8,4122.7,1.15705]
[1760310200726,6.42111327,4122.8,4122.7,1.15705]
[1760310200930,47.22111327,4122.8,4122.7,1.15705]
[1760310201835,40.8,4122.8,4122.7,1.15705]
[1760310203229,43.98903665,4122.8,4122.7,1.15705]
[1760310203419,43.98903665,4122.8,4122.6,0.43626]
[1760310203622,43.98903665,4122.8,4122.4,0.43628]
[1760310203828,43.98903665,4122.8,4122.5,0.43627]
[1760310204235,43.98903665,4122.8,4122.6,0.43626]
[1760310204732,47.19683665,4122.8,4122.6,0.43626]
[1760310204927,47.19683665,4122.8,4122.7,0.6838]
[1760310206229,47.19683665,4122.8,4122.6,0.43626]
[1760310206423,6.39683665,4122.8,4122.6,1.12006]
[1760310206731,3.18903665,4122.8,4122.7,0.6838]
[1760310207030,3.19096311,4123.0,4122.7,0.6838]
[1760310207230,3.19096311,4123.0,4122.8,0.43624]
[1760310207427,0.00269103,4123.1,4123.0,0.43622]
[1760310207828,3.19365414,4123.1,4123.0,1.12002]
[1760310208130,3.19365414,4123.1,4123.0,1.40722]
[1760310208628,40.80269103,4123.1,4123.0,1.40722]
[1760310209923,3.2078,4123.9,4123.6,0.6838]
[1760310210230,3.2078,4123.9,4123.5,0.2872]
[1760310210231,4.29575331,4124.3,4124.2,0.43609]
[1760310210426,40.8,4124.3,4124.2,1.11989]
[1760310211026,40.80265114,4124.3,4124.2,1.12253918]
[1760310211227,0.00265114,4124.3,4124.2,4.33033918]
[1760310211630,1.14e-06,4124.3,4124.2,4.33033918]
[1760310212331,40.80000114,4124.3,4124.2,4.33033918]
[1760310213428,40.80000114,4124.3,4124.2,1.12253918]
[1760310213429,48.18871311,4124.3,4124.2,1.12253918]
[1760310213732,47.67708632,4124.3,4124.2,1.12253918]
[1760310215029,44.58412766,4124.3,4124.2,4.33033918]
[1760310215829,3.78412652,4124.6,4124.5,0.43606]
[1760310216032,3.2078,4125.4,4124.8,1.11983]
[1760310216033,3.78412652,4124.9,4124.8,1.11983]
[1760310216425,3.78412652,4124.9,4124.5,0.971]
[1760310216426,6.96427414,4124.9,4124.5,0.971]
[1760310216731,6.96427414,4124.9,4124.7,0.43604]
[1760310217033,6.96646698,4124.9,4124.8,0.6838]
[1760310218828,47.76646698,4124.9,4124.8,0.6838]
[1760310220833,43.98234046,4124.9,4124.8,0.6838]
[1760310221036,3.78412652,4125.7,4125.6,1.11975]
[1760310221334,10.8915,4128.4,4125.6,1.11975]
[1760310221335,6.99192652,4126.6,4126.5,1.40685]
[1760310221633,3.78412652,4126.9,4126.8,0.43582]
[1760310221827,3.78412652,4126.9,4126.8,1.11962]
[1760310222027,44.58714169,4126.9,4126.8,1.11962]
[1760310222427,40.80301517,4126.9,4126.8,1.11962]
[1760310222634,3.78412652,4128.3,4128.2,0.6838]
[1760310223029,6.99570012,4128.3,4128.2,0.6838]
[1760310223226,6.99570012,4128.3,4127.5,0.2872]
[1760310223428,6.99570012,4128.3,4127.4,0.43576]
[1760310223429,6.99192652,4127.6,4127.4,1.11956]
[1760310223629,40.8,4127.5,4127.4,1.12150798]
[1760310223834,44.0115736,4127.5,4127.4,1.12150798]
[1760310225134,44.0115736,4127.5,4126.6,1.08961]
[1760310225135,44.0115736,4127.5,4126.4,3.934]
[1760310225435,3.78412652,4126.6,4126.5,1.44925]
[1760310225832,3.78412652,4126.9,4126.6,1.08959]
[1760310226032,3.78412652,4126.9,4126.8,0.43582]
[1760310226342,3.78412652,4126.9,4126.6,1.08959]
[1760310226343,3.11795399,4126.8,4126.6,0.43583]
[1760310226641,3.78412652,4126.9,4126.1,0.7262]
[1760310226838,3.78412652,4126.9,4126.8,0.7262]
[1760310227243,6.92266423,4126.9,4126.8,0.7285941]
[1760310229046,47.72266423,4126.9,4126.8,0.7285941]
[1760310229446,44.58412652,4126.9,4126.8,0.7285941]
[1760310229746,3.21066872,4127.6,4126.8,0.7285941]
[1760310229747,6.99479524,4127.6,4127.5,1.46585]
[1760310229947,3.78412652,4128.0,4127.6,1.81554]
[1760310230250,3.78412652,4128.0,4127.9,0.4357]
[1760310230450,3.78412652,4128.0,4127.9,1.1619]
[1760310230647,44.58412652,4128.0,4127.9,1.1619]
[1760310230948,44.58614835,4128.0,4127.9,1.1619]
[1760310231849,47.72386807,4128.0,4127.9,1.1619]
[1760310232244,43.93974155,4128.0,4127.0,3.5117]
[1760310232451,3.78412652,4127.1,4126.5,3.5117]
[1760310232756,3.16320842,4127.0,4126.7,0.43582]
[1760310232951,3.16320842,4127.0,4126.8,0.43581]
[1760310233148,3.16320842,4127.0,4126.5,3.2078]
[1760310233446,3.2078,4126.8,4126.5,0.73754]
[1760310233651,3.2078,4126.8,4126.0,0.3039]
[1760310233852,3.78412652,4126.1,4126.0,1.4485]
[1760310234350,6.96461742,4126.1,4125.5,0.3017]
[1760310234548,40.8,4125.6,4125.5,1.01346472]
[1760310234846,40.8,4125.6,4124.9,0.7087]
[1760310234847,47.1882909,4125.6,4124.9,0.7087]
[1760310235054,3.78412652,4125.1,4124.9,0.7087]
[1760310235355,6.93427911,4125.1,4124.9,0.43601]
[1760310235645,6.93427911,4125.1,4124.5,0.3017]
[1760310235646,40.8,4125.0,4124.5,0.3017]
[1760310235851,40.8,4125.0,4124.5,0.00189995]
[1760310235852,3.2078,4124.6,4124.5,0.00189995]
[1760310236248,6.40921865,4124.6,4124.5,0.00189995]
[1760310236449,47.20921865,4124.6,4124.5,0.00189995]
[1760310237250,47.20921865,4124.6,4124.2,0.43609]
[1760310237447,47.20921865,4124.6,4124.4,0.43607]
[1760310238152,47.20921865,4124.6,4124.4,0.4380759]
[1760310238552,3.78412652,4124.5,4124.4,0.4380759]
[1760310238852,7.00177897,4124.5,4124.4,1.1467759]
[1760310240356,3.21765245,4124.5,4124.4,1.1467759]
[1760310240655,44.01765245,4124.5,4124.4,1.1467759]
[1760310241255,44.01765245,4124.5,4124.0,0.3017]
[1760310241256,44.01765245,4124.5,4124.1,0.4361]
[1760310241552,3.78412652,4124.2,4124.1,0.4361]
[1760310241953,6.94805896,4124.2,4124.1,0.4361]
[1760310242153,47.74805896,4124.2,4124.1,0.43831106]
[1760310243250,47.74805896,4124.2,4123.0,3.5095]
[1760310243251,47.74805896,4124.2,4123.7,0.43614]
[1760310243456,6.99192652,4123.8,4123.7,0.43614]
[1760310243857,10.12007968,4123.8,4123.7,0.43614]
[1760310244154,50.92007968,4123.8,4123.7,0.43894507]
[1760310245047,50.92007968,4123.8,4123.7,1.14764507]
[1760310245248,50.92007968,4123.8,4123.7,0.43894507]
[1760310246155,50.92007968,4123.8,4123.7,1.14764507]
[1760310246549,47.13595316,4123.8,4123.7,1.14764507]
[1760310246856,40.8,4123.8,4123.7,1.14764507]
[1760310247557,47.18950966,4123.8,4123.7,0.43894507]
[1760310248458,47.18950966,4123.8,4123.7,1.14764507]
[1760310249249,47.18950966,4123.8,4123.7,0.43894507]
[1760310249859,47.18950966,4123.8,4123.7,1.14764507]
[1760310250355,0.00204499,4125.0,4123.9,1.09031]
[1760310250356,3.2078,4124.4,4123.9,1.09031]
[1760310250558,3.20984499,4125.0,4124.9,0.43602]
[1760310250859,10.60985,4126.5,4125.6,0.7087]
[1760310250860,6.99192652,4125.7,4125.6,0.7087]
[1760310251061,6.99192652,4125.7,4125.6,1.14465]
[1760310251263,10.18425758,4125.7,4125.6,1.14465]
[1760310251465,50.98425758,4125.7,4125.6,1.14465]
[1760310251761,50.98604863,4125.7,4125.6,1.14465]
[1760310252556,50.98604863,4125.7,4125.1,0.7087]
[1760310252756,50.98604863,4125.7,4125.5,0.43595]
[1760310252957,50.98604863,4125.7,4125.5,1.14465]
[1760310253359,50.98604863,4125.7,4125.5,1.44635]
[1760310253556,50.98604863,4125.7,4125.5,0.73765]
[1760310254963,50.98604863,4125.7,4125.5,1.44635]
[1760310255268,50.98604863,4125.7,4125.0,1.0104]
[1760310255463,3.78412652,4125.1,4125.0,1.44641]
[1760310255857,7.00261647,4125.1,4125.0,1.44641]
[1760310256164,7.00261647,4125.1,4125.0,0.43601]
[1760310256662,47.80261647,4125.1,4125.0,0.43601]
[1760310256860,47.80261647,4125.1,4124.5,0.3017]
[1760310257059,47.80261647,4125.1,4124.2,3.2078]
[1760310257251,3.78412652,4124.6,4124.4,1.09019]
[1760310257455,3.78412652,4124.6,4124.5,1.0104]
[1760310257859,6.89834012,4124.6,4124.5,1.0104]
[1760310258060,47.69834012,4124.6,4124.5,1.0104]
[1760310258254,50.90614012,4124.6,4124.5,1.0104]
[1760310258461,50.90614012,4124.6,4124.5,0.43606]
[1760310258655,50.90614012,4124.6,4124.0,1.0104]
[1760310258857,3.2078,4124.1,4123.7,0.00280507]
[1760310259162,3.19187279,4124.0,4123.9,0.43612]
[1760310259872,43.99187279,4124.0,4123.9,1.14482]
[1760310262066,43.99187279,4124.0,4123.9,0.43612]
[1760310262366,43.99187279,4124.0,4123.9,1.24462]
[1760310265467,43.99187279,4124.0,4123.9,0.43612]
[1760310265964,43.99187279,4124.0,4123.9,1.24462]
[1760310266366,40.8,4124.0,4123.9,1.24462]
[1760310267064,44.01396313,4124.0,4123.9,1.24462]
[1760310267570,0.436,4125.1,4124.8,1.09006]
[1760310267571,3.2078,4125.1,4124.8,1.09006]
[1760310267771,3.2078,4125.8,4125.6,1.24445]
[1760310268166,3.21005118,4125.7,4125.6,1.24445]
[1760310268368,44.01005118,4125.7,4125.6,1.24445]
[1760310268863,40.8,4125.7,4125.6,1.24445]
[1760310269067,0.86138856,4127.6,4125.6,1.24445]
[1760310269068,3.2078,4126.9,4126.7,0.43582]
[1760310269277,3.78412652,4126.8,4126.7,0.43582]
[1760310269973,3.78412652,4126.8,4126.7,0.43792763]
[1760310269974,44.58630793,4126.8,4126.7,0.43792763]
[1760310271473,44.58630793,4126.8,4126.7,0.00210763]
[1760310271671,44.58630793,4126.8,4126.7,0.43793763]
[1760310273576,45.09547844,4126.8,4126.7,0.43793763]
[1760310274174,0.43585,4126.6,4125.5,0.2933]
[1760310274478,3.2078,4126.1,4125.9,0.43591]
[1760310274672,3.2078,4126.1,4125.7,0.43593]
[1760310274871,3.2078,4126.1,4125.5,0.2933]
[1760310274872,3.1681525,4126.0,4125.8,0.43592]
[1760310275273,3.1681525,4126.0,4125.8,1.24442]
[1760310275575,40.8,4125.9,4125.8,1.24442]
[1760310276865,3.2078,4126.7,4126.6,1.24434]
[1760310277064,0.00218141,4126.8,4126.6,1.24434]
[1760310277065,0.00218141,4126.8,4126.7,0.8085]
[1760310277970,40.80218141,4126.8,4126.7,0.8085]
[1760310278674,43.95513834,4126.8,4126.6,0.43583]
[1760310278878,4.29329703,4126.7,4126.6,0.43583]
[1760310279076,4.29329703,4126.7,4126.6,0.43779997]
[1760310279277,4.29329703,4126.7,4125.1,3.2078]
[1760310279278,7.49749622,4126.7,4125.1,3.2078]
[1760310279575,45.09329703,4125.6,4125.4,0.43596]
[1760310279871,6.41199919,4125.5,4125.4,0.43596]
[1760310280269,6.41199919,4125.5,4125.4,0.43770051]
[1760310280476,47.21199919,4125.5,4125.4,0.43770051]
[1760310280773,44.00419919,4125.5,4125.4,0.43770051]
[1760310280964,44.00419919,4125.5,4125.4,1.24620051]
[1760310281167,44.00419919,4125.5,4125.4,0.43770051]
[1760310281676,44.00419919,4125.5,4124.5,0.2933]
[1760310281976,44.00419919,4125.5,4124.0,2.02699744]
[1760310281977,3.2078,4124.6,4124.0,0.2933]
[1760310282167,3.2078,4124.6,4124.3,0.43608]
[1760310282366,3.15233195,4124.5,4124.3,0.43608]
[1760310282775,3.15233195,4124.5,4124.3,0.43881684]
[1760310284067,3.15233195,4124.5,4124.4,0.7961]
[1760310284672,43.95233195,4124.5,4124.4,0.7961]
[1760310285475,40.8,4124.5,4124.4,0.7961]
[1760310285779,7.50109703,4125.2,4125.1,1.2321]
[1760310286076,7.43481503,4125.2,4125.1,1.2321]
[1760310286274,3.141518,4125.2,4125.1,1.2321]
[1760310286474,3.2078,4125.8,4125.7,1.23204]
[1760310286773,0.00218141,4126.8,4126.2,1.23198]
[1760310286970,3.20998141,4126.8,4126.7,1.23193]
[1760310287172,0.00218141,4126.8,4126.7,1.23193]
[1760310289483,40.80218141,4126.8,4126.7,1.23193]
[1760310289780,4.29329703,4127.9,4127.8,1.23181]
[1760310290181,7.47889408,4127.9,4127.2,0.7961]
[1760310290376,3.2078,4127.6,4126.7,0.43582]
[1760310290571,44.0078,4126.8,4126.7,0.43792415]
[1760310290773,44.0078,4126.8,4126.7,0.00210415]
[1760310290988,47.10430829,4126.8,4126.7,0.00210415]
[1760310291287,47.10430829,4126.8,4126.7,0.79820415]
[1760310292082,40.8,4126.8,4126.7,0.79820415]
[1760310293581,43.89866441,4126.8,4126.3,3.2078]
[1760310293786,43.89866441,4126.8,4126.4,0.7577]
[1760310294083,43.89866441,4126.8,4126.6,0.43583]
[1760310294474,43.89866441,4126.8,4126.6,0.43789502]
[1760310294673,43.89866441,4126.8,4126.7,0.7577]
[1760310295382,43.89866441,4126.8,4126.6,0.43789502]
[1760310295692,3.09866441,4126.8,4126.6,0.43789502]
[1760310296083,3.21224794,4126.9,4126.8,0.43581]
[1760310296389,3.2078,4127.0,4126.8,0.43581]
[1760310296584,3.2078,4127.5,4127.3,0.43576]
[1760310296784,3.2078,4127.5,4127.1,0.43578]
[1760310296990,4.29329703,4127.2,4127.1,0.43578]
[1760310297288,7.38791668,4127.2,4126.7,0.43583]
[1760310297584,3.2078,4126.8,4126.7,1.19353]
[1760310297992,6.30241965,4126.8,4126.7,1.19353]
[1760310298186,3.09461965,4126.8,4126.7,1.19353]
[1760310298384,3.09461965,4126.8,4126.7,0.43583]
[1760310298583,3.12169262,4127.1,4127.0,0.43579]
[1760310298784,4.29329703,4127.2,4127.0,0.43579]
[1760310299090,3.12169262,4127.1,4127.0,0.43579]
[1760310299386,43.92169262,4127.1,4127.0,0.43579]
[1760310300684,43.92169262,4127.1,4125.7,0.43593]
[1760310300880,4.29329703,4125.9,4125.2,3.2078]
[1760310301087,4.29329703,4125.9,4125.7,0.43593]